bitfinex/quotes_ETHUSD_20240719
["timestamp","ask_amount","ask_price","bid_price","bid_amount"]
[1721398644865,0.1501131,3466.1,3465.3,5.7715]
[1721398645183,0.1501131,3466.1,3465.4,0.59665]
[1721398645696,0.1501131,3466.1,3465.7,0.1]
[1721398646427,2.88517,3466.0,3465.7,0.1]
[1721398646718,2.88533,3465.8,3465.7,0.1]
[1721398647767,5.88533,3465.8,3465.7,0.1]
[1721398647970,6.84827431,3465.8,3465.7,0.1]
[1721398648225,6.74827431,3465.8,3465.7,0.1]
[1721398648806,3.594,3465.9,3465.7,0.1]
[1721398648964,3.65180988,3465.9,3465.7,0.1]
[1721398649307,2.88533,3465.8,3465.7,0.1]
[1721398649543,2.94313988,3465.8,3465.7,0.1]
[1721398650127,5.82846988,3465.8,3465.7,0.1]
[1721398650452,11.98255818,3465.8,3465.7,0.1]
[1721398650649,15.53255818,3465.8,3465.7,0.1]
[1721398650945,15.4747483,3465.8,3465.7,0.1]
[1721398652351,15.4747483,3465.8,3465.7,0.2]
[1721398653920,12.5894183,3465.8,3465.7,0.2]
[1721398654166,3.594,3465.9,3465.7,0.2]
[1721398654450,2.88533,3465.8,3465.7,0.2]
[1721398654806,6.47926,3465.9,3465.7,0.2]
[1721398655146,6.47926,3465.9,3465.8,0.1]
[1721398655353,10.31596631,3465.9,3465.8,0.1]
[1721398657219,13.20122631,3465.9,3465.8,0.1]
[1721398657410,16.75122631,3465.9,3465.8,0.1]
[1721398657831,13.15722631,3465.9,3465.8,0.1]
[1721398658249,13.05722631,3465.9,3465.8,0.1]
[1721398659775,5.77066,3465.8,3465.7,0.2]
[1721398659946,13.5781539,3465.8,3465.7,0.2]
[1721398660150,16.4634839,3465.8,3465.7,0.2]
[1721398660479,8.65725,3465.3,3465.2,0.195]
[1721398660640,12.20725,3465.3,3465.2,0.195]
[1721398660840,13.15869631,3465.3,3465.2,0.195]
[1721398661260,9.72294631,3465.3,3465.2,0.195]
[1721398661664,13.15869631,3465.3,3465.2,0.195]
[1721398662093,10.27294631,3465.3,3465.2,0.195]
[1721398662395,15.85469631,3465.3,3465.2,0.195]
[1721398662615,12.41894631,3465.3,3465.2,0.195]
[1721398663454,2.696,3465.3,3465.2,0.195]
[1721398663661,5.58175,3465.3,3465.2,0.195]
[1721398663989,8.4675,3465.3,3465.2,0.195]
[1721398664168,5.58175,3465.3,3465.2,0.195]
[1721398665186,2.696,3465.3,3465.2,0.195]
[1721398665383,2.88567,3465.4,3465.2,0.195]
[1721398665588,3.23212688,3465.3,3465.2,0.195]
[1721398665807,3.174317,3465.3,3465.2,0.195]
[1721398666768,6.11787688,3465.3,3465.2,0.195]
[1721398667091,6.66787688,3465.3,3465.2,0.195]
[1721398668005,0.288567,3465.3,3465.2,0.195]
[1721398668173,2.88567,3465.4,3465.2,0.195]
[1721398668380,2.88575,3465.3,3465.2,0.195]
[1721398668685,5.7715,3465.3,3465.2,0.195]
[1721398669699,6.3215,3465.3,3465.2,0.195]
[1721398669862,7.24799499,3465.3,3465.2,0.195]
[1721398670055,6.69799499,3465.3,3465.2,0.195]
[1721398670597,7.24799499,3465.3,3465.2,0.195]
[1721398670904,10.24799499,3465.3,3465.2,0.195]
[1721398673469,13.13374499,3465.3,3465.2,0.195]
[1721398673797,16.01949499,3465.3,3465.2,0.195]
[1721398676462,5.77282,3464.5,3464.4,0.1]
[1721398677468,6.40345534,3464.5,3464.4,0.1]
[1721398679187,3.51704534,3464.5,3464.4,0.1]
[1721398679411,2.88641,3464.5,3464.4,0.1]
[1721398679712,5.83062988,3464.5,3464.4,0.1]
[1721398680022,8.83062988,3464.5,3464.4,0.1]
[1721398680201,9.32282,3464.5,3464.4,0.1]
[1721398680402,2.88614,3464.9,3464.4,0.1]
[1721398680587,2.88625,3464.7,3464.4,0.1]
[1721398681093,2.88614,3464.9,3464.4,0.1]
[1721398681265,5.88618,3464.8,3464.4,0.1]
[1721398682205,2.88618,3464.8,3464.4,0.1]
[1721398682416,3.594,3465.3,3464.5,2.379]
[1721398682579,3.594,3465.3,3464.6,0.2479]
[1721398682580,6.47981,3465.3,3464.6,0.2479]
[1721398682916,0.1501131,3466.1,3464.6,0.2479]
[1721398683218,3.0352031,3466.1,3464.9,2.886]
[1721398683428,2.88548,3465.7,3464.6,2.8479]
[1721398683588,2.88531,3465.9,3464.7,2.88622]
[1721398683785,2.88536,3465.8,3464.8,0.811312]
[1721398684004,2.94322988,3465.7,3464.8,0.811312]
[1721398684372,3.594,3465.8,3464.8,0.811312]
[1721398684913,0.05780988,3465.7,3464.8,0.811312]
[1721398685119,0.05780988,3465.7,3464.6,2.6]
[1721398685120,3.594,3465.3,3464.6,2.6]
[1721398685296,2.94363988,3465.2,3464.6,2.6]
[1721398685983,2.88598,3465.1,3464.6,2.6]
[1721398686188,5.58201,3465.0,3464.6,2.6]
[1721398686805,5.63981988,3465.0,3464.6,2.6]
[1721398686981,2.75380988,3465.0,3464.6,2.6]
[1721398687184,2.696,3465.0,3464.5,2.379]
[1721398687509,2.696,3465.0,3464.5,2.6269]
[1721398687871,2.696,3465.0,3464.5,2.379]
[1721398688106,2.88622,3464.8,3464.5,2.379]
[1721398688309,2.8863,3464.7,3464.5,2.379]
[1721398688478,2.8863,3464.7,3464.4,0.1]
[1721398688682,2.696,3464.6,3464.4,0.1]
[1721398689222,5.88572,3465.4,3464.4,0.1]
[1721398689223,2.696,3465.0,3464.4,0.1]
[1721398689519,3.0,3465.4,3464.4,0.1]
[1721398689520,2.696,3465.4,3464.4,0.1]
[1721398689721,5.58168,3465.4,3464.4,3.285095]
[1721398689873,5.58168,3465.4,3464.4,0.398665]
[1721398690075,2.696,3465.4,3464.5,2.4239]
[1721398690598,2.696,3465.4,3464.5,5.31031]
[1721398690904,2.696,3465.4,3464.6,0.5708975]
[1721398691113,2.88543,3465.7,3464.6,0.5708975]
[1721398691323,2.75380988,3465.8,3464.6,0.5708975]
[1721398691625,2.696,3465.8,3464.6,3.4571875]
[1721398691910,5.58139,3465.8,3464.6,0.5708975]
[1721398692114,5.58139,3465.8,3464.7,0.62798725]
[1721398692479,2.88552,3465.6,3464.7,0.62798725]
[1721398693218,2.75380988,3465.8,3464.8,2.3261]
[1721398693444,2.8855,3465.6,3464.8,2.3261]
[1721398693760,5.58139,3465.8,3464.8,2.3261]
[1721398694047,2.88543,3465.7,3464.8,2.3261]
[1721398694752,2.88552,3465.6,3464.8,2.3261]
[1721398695101,2.88559,3465.5,3464.8,2.3261]
[1721398695710,2.88552,3465.6,3464.8,2.3261]
[1721398696642,2.88544,3465.7,3464.8,2.3261]
[1721398696856,2.8855,3465.6,3464.8,2.90442475]
[1721398697182,2.88559,3465.5,3464.8,2.90442475]
[1721398697334,2.696,3465.4,3464.8,2.90442475]
[1721398697911,2.8859,3465.2,3464.8,2.3261]
[1721398698107,2.88618,3464.8,3464.4,0.1]
[1721398698334,2.88636,3464.6,3464.4,0.1]
[1721398698737,2.88622,3464.8,3464.4,0.1]
[1721398699261,2.88632,3464.7,3464.4,0.1]
[1721398699422,2.88634,3464.6,3464.4,0.1]
[1721398699752,2.88641,3464.5,3464.4,0.1]
[1721398700244,2.696,3465.0,3464.4,0.1]
[1721398700447,2.88596,3465.1,3464.4,0.33896]
[1721398700611,2.88579,3465.3,3464.4,0.1]
[1721398701233,2.696,3465.4,3464.4,0.1]
[1721398701552,2.88586,3465.2,3464.4,0.1]
[1721398701756,2.88615,3464.9,3464.4,0.1]
[1721398701914,2.696,3465.0,3464.4,0.1]
[1721398701915,2.75380988,3465.0,3464.4,0.1]
[1721398702115,2.88629,3464.7,3464.4,0.1]
[1721398702321,2.88633,3464.6,3464.4,0.1]
[1721398702532,0.27538099,3464.9,3464.4,0.1]
[1721398702752,2.88584,3465.2,3464.4,0.1]
[1721398703363,2.88567,3465.4,3464.4,0.1]
[1721398704017,2.88575,3465.3,3464.4,0.1]
[1721398704249,2.88598,3465.1,3464.4,0.1]
[1721398704448,0.05780988,3465.3,3464.4,0.1]
[1721398704775,2.88609,3464.9,3464.4,0.1]
[1721398705156,2.696,3465.1,3464.4,0.1]
[1721398705157,5.58195,3465.1,3464.4,0.1]
[1721398705358,2.696,3465.1,3464.4,0.627634]
[1721398706151,2.88608,3465.0,3464.4,0.1]
[1721398706474,2.696,3465.1,3464.4,0.1]
[1721398707891,2.88634,3464.6,3464.4,0.1]
[1721398708040,2.88641,3464.5,3464.4,0.1]
[1721398709072,2.696,3464.7,3464.4,0.1]
[1721398709576,0.846819,3464.7,3464.4,0.1]
[1721398709775,0.05780988,3464.9,3464.4,0.1]
[1721398709976,2.88641,3464.5,3464.4,0.1]
[1721398710344,5.77282,3464.5,3464.4,0.1]
[1721398710977,5.83062988,3464.5,3464.4,0.1]
[1721398711275,6.70232187,3464.5,3464.4,0.1]
[1721398711583,9.34051199,3464.5,3464.4,0.1]
[1721398713233,12.22692199,3464.5,3464.4,0.1]
[1721398714073,9.34051199,3464.5,3464.4,0.1]
[1721398714726,6.45410199,3464.5,3464.4,0.1]
[1721398714907,5.58215,3464.9,3464.4,0.1]
[1721398715106,2.88517,3466.0,3464.4,0.1]
[1721398715107,2.886,3465.0,3464.4,0.1]
[1721398715491,2.88608,3464.9,3464.4,0.1]
[1721398715693,0.14244798,3465.8,3464.4,0.1]
[1721398715694,2.88618,3464.8,3464.4,0.1]
[1721398715923,2.88633,3464.7,3464.4,0.1]
[1721398716222,5.58241,3464.5,3464.4,0.1]
[1721398716434,8.52662988,3464.5,3464.4,0.1]
[1721398717085,8.46882,3464.5,3464.4,0.1]
[1721398718626,11.35523,3464.5,3464.4,0.1]
[1721398719134,14.35523,3464.5,3464.4,0.1]
[1721398719286,15.32427663,3464.5,3464.4,0.1]
[1721398719492,12.43786663,3464.5,3464.4,0.1]
[1721398719844,5.58241,3464.5,3464.4,0.1]
[1721398720217,8.46882,3464.5,3464.4,0.1]
[1721398720644,11.35523,3464.5,3464.4,0.1]
[1721398720850,8.46882,3464.5,3464.4,0.1]
[1721398721644,11.46882,3464.5,3464.4,0.1]
[1721398722748,8.77282,3464.5,3464.4,0.1]
[1721398724010,11.65923,3464.5,3464.4,0.1]
[1721398724705,8.77282,3464.5,3464.4,0.1]
[1721398724932,5.88641,3464.5,3464.4,0.1]
[1721398725160,11.46982,3464.5,3464.4,0.1]
[1721398725430,12.616802,3464.5,3464.4,0.1]
[1721398726586,15.503212,3464.5,3464.4,0.1]
[1721398727569,12.616802,3464.5,3464.4,0.1]
[1721398727777,15.503212,3464.5,3464.4,0.1]
[1721398728212,12.616802,3464.5,3464.4,0.1]
[1721398728573,15.503212,3464.5,3464.4,0.1]
[1721398728979,12.616802,3464.5,3464.4,0.1]
[1721398729181,11.46982,3464.5,3464.4,0.1]
[1721398731375,14.35623,3464.5,3464.4,0.1]
[1721398732182,11.65923,3464.5,3464.4,0.1]
[1721398732594,11.65923,3464.5,3463.8,2.6]
[1721398732595,5.77382,3463.9,3463.8,2.6]
[1721398732893,5.77382,3463.9,3463.0,2.4377]
[1721398732894,2.88758,3463.1,3463.0,2.4377]
[1721398734722,2.88784,3462.8,3462.1,2.4993]
[1721398734928,5.58465,3463.1,3462.1,2.4993]
[1721398734929,2.88813,3462.5,3462.1,2.4993]
[1721398735590,2.88792,3462.7,3462.1,2.4993]
[1721398735924,2.888,3462.6,3462.1,2.4993]
[1721398736236,2.88833,3462.2,3462.1,2.4993]
[1721398736515,2.88843,3462.1,3461.3,2.2853]
[1721398736813,2.88865,3461.9,3461.3,2.2853]
[1721398737012,2.88843,3462.1,3461.3,2.2853]
[1721398737013,2.88847,3462.1,3461.3,2.2853]
[1721398737918,2.88827,3462.3,3461.3,2.2853]
[1721398738120,2.88827,3462.3,3461.3,5.17438]
[1721398738303,2.88827,3462.3,3461.4,0.517438]
[1721398738640,2.697,3462.4,3461.4,0.517438]
[1721398738779,2.697,3462.4,3461.3,2.2853]
[1721398738780,0.05780988,3462.2,3461.3,2.2853]
[1721398738977,2.88858,3461.9,3461.3,2.2853]
[1721398739175,5.58551,3462.0,3461.3,2.2853]
[1721398739399,2.88872,3461.8,3461.3,2.2853]
[1721398739787,2.88872,3461.8,3461.3,2.2353]
[1721398740617,5.58555,3462.0,3461.3,2.2353]
[1721398740820,2.88859,3461.9,3461.3,2.2353]
[1721398741142,2.697,3462.0,3461.3,2.45883]
[1721398741311,2.697,3462.6,3461.4,37.88892]
[1721398741826,2.88825,3462.3,3461.4,35.0]
[1721398742217,2.697,3462.6,3461.4,35.0]
[1721398742417,2.88817,3462.4,3461.4,35.0]
[1721398742623,2.88817,3462.4,3461.5,2.91736562]
[1721398742862,2.697,3462.1,3461.3,2.2353]
[1721398743064,2.88858,3462.0,3461.3,2.2353]
[1721398743359,0.05780988,3461.9,3461.6,35.0]
[1721398743527,2.94640988,3461.9,3461.3,2.2353]
[1721398744054,2.88853,3462.0,3461.4,35.0]
[1721398744215,5.58544,3462.1,3461.4,35.0]
[1721398744416,2.8885,3462.0,3461.4,35.0]
[1721398745024,0.14526469,3462.8,3460.8,2.4921]
[1721398745025,3.23525988,3461.9,3460.8,2.4921]
[1721398745513,3.601,3461.6,3460.9,35.0]
[1721398746057,0.28885,3461.9,3460.8,2.4921]
[1721398746354,2.88909,3461.3,3460.8,2.4921]
[1721398746554,2.88918,3461.2,3460.8,2.4921]
[1721398747149,2.88906,3461.4,3460.8,2.4921]
[1721398747331,2.88909,3461.3,3460.8,2.4921]
[1721398748456,2.88926,3461.1,3460.8,1.65491015]
[1721398748676,2.88956,3460.8,3458.2,3.601]
[1721398748961,2.88935,3461.0,3458.2,3.601]
[1721398748962,2.88927,3461.1,3460.0,2.89016]
[1721398749117,3.601,3461.2,3460.1,0.289016]
[1721398749314,3.601,3461.2,3459.6,2.89049]
[1721398749315,0.05780988,3461.1,3459.6,2.89049]
[1721398749647,2.88944,3460.9,3459.7,2.89035]
[1721398750010,3.601,3460.7,3459.1,5.49089]
[1721398750138,2.89,3460.2,3459.1,5.49089]
[1721398750339,2.89,3460.2,3459.2,35.0]
[1721398750657,2.89,3460.2,3459.3,2.91736562]
[1721398751015,2.89,3460.2,3459.2,2.89084]
[1721398751221,2.89018,3460.0,3459.4,35.0]
[1721398751440,2.89031,3459.9,3459.4,35.0]
[1721398752468,2.89034,3459.8,3459.4,35.0]
[1721398752635,2.89021,3460.0,3459.4,35.0]
[1721398752954,3.601,3459.7,3458.7,2.89125]
[1721398753173,3.601,3460.2,3458.8,0.05781493]
[1721398753321,2.3517,3461.1,3458.9,37.89107]
[1721398753322,2.88956,3460.8,3458.9,37.89107]
[1721398753659,6.49058,3460.7,3459.5,2.3797]
[1721398754070,6.49058,3460.7,3459.6,2.89049]
[1721398754224,3.601,3460.7,3459.9,2.89024]
[1721398754430,3.601,3461.2,3459.9,0.05779824]
[1721398754741,3.601,3461.7,3460.5,5.14244]
[1721398754935,3.601,3461.7,3460.6,35.0]
[1721398755757,2.88892,3461.5,3460.6,35.0]
[1721398755978,2.88886,3461.6,3460.7,2.91736562]
[1721398756122,0.05780988,3461.6,3460.6,35.0]
[1721398756326,3.601,3461.2,3460.6,35.0]
[1721398756865,3.601,3461.8,3460.7,5.20807]
[1721398757230,3.601,3461.8,3460.9,2.88941]
[1721398757427,3.601,3461.8,3461.0,3.699048]
[1721398757754,3.601,3461.8,3461.0,0.809748]
[1721398759373,6.48967,3461.8,3461.0,0.809748]
[1721398759687,3.601,3461.8,3461.0,0.809748]
[1721398760032,3.65880988,3461.8,3461.0,0.809748]
[1721398760335,4.02469087,3461.8,3460.7,2.3185]
[1721398760673,2.88894,3461.5,3460.7,2.3185]
[1721398761256,6.91336087,3461.8,3460.6,35.0]
[1721398761257,2.8888,3461.7,3460.6,35.0]
[1721398761778,2.88893,3461.5,3460.6,35.0]
[1721398762612,2.88918,3461.2,3460.6,35.0]
[1721398762790,3.601,3461.3,3460.6,35.0]
[1721398762947,3.601,3461.3,3460.6,40.80702562]
[1721398763281,3.601,3461.8,3461.0,2.88926]
[1721398763452,3.601,3461.8,3460.8,2.88945]
[1721398763646,3.601,3461.8,3460.7,2.88957]
[1721398763647,2.88837,3462.2,3460.6,37.91736562]
[1721398763972,3.601,3462.3,3460.6,37.91736562]
[1721398763973,2.88842,3462.1,3461.1,2.88923]
[1721398764275,2.88842,3462.1,3461.2,0.577861]
[1721398764656,2.88852,3462.0,3461.2,0.577861]
[1721398765575,6.48968,3461.8,3460.6,40.80702562]
[1721398765773,6.48968,3461.8,3460.7,2.88958]
[1721398766077,3.601,3461.8,3460.9,2.8894]
[1721398766265,3.601,3461.8,3461.0,2.88931]
[1721398766482,2.88835,3462.2,3461.2,2.8891]
[1721398766648,2.4186,3462.8,3461.1,2.3625]
[1721398766649,3.601,3462.8,3461.4,2.88898]
[1721398766849,6.48889,3462.8,3461.5,2.88891]
[1721398767071,6.48889,3462.8,3461.8,2.88866]
[1721398767072,3.601,3462.8,3461.8,2.88866]
[1721398767574,3.601,3462.8,3461.6,2.88883]
[1721398767575,3.601,3462.8,3461.6,2.88878]
[1721398767741,0.05780988,3462.7,3461.3,0.52516]
[1721398767946,2.88834,3462.2,3461.3,0.52516]
[1721398768142,2.94622988,3462.1,3461.1,7.85172]
[1721398768384,2.94622988,3462.1,3461.1,4.9625]
[1721398768793,3.601,3462.3,3461.1,4.9625]
[1721398769032,2.88876,3461.7,3461.1,4.9625]
[1721398769282,3.601,3461.8,3461.1,4.9625]
[1721398769508,4.538804,3461.8,3461.1,4.9625]
[1721398769723,2.88844,3462.1,3461.1,4.9625]
[1721398769936,3.0,3462.2,3461.1,4.9625]
[1721398769937,2.88867,3461.8,3461.1,4.9625]
[1721398770074,2.88875,3461.7,3461.1,4.9625]
[1721398770274,2.701,3461.8,3461.1,4.9625]
[1721398770900,6.15983,3461.8,3461.1,4.9625]
[1721398771069,3.2711,3461.8,3461.1,2.6]
[1721398771485,0.5701,3461.8,3460.9,2.8894]
[1721398771719,0.5701,3461.8,3461.0,2.88933]
[1721398771720,2.701,3461.8,3461.0,2.88933]
[1721398771886,2.701,3461.8,3460.8,2.88942]
[1721398772304,2.701,3461.8,3461.0,2.88928]
[1721398772684,2.701,3461.8,3461.1,2.88924]
[1721398772888,2.701,3461.8,3460.8,2.88942]
[1721398773079,2.701,3461.4,3460.6,2.4235]
[1721398773388,2.701,3461.4,3460.6,5.31315]
[1721398773583,2.701,3461.8,3460.6,2.4235]
[1721398773784,5.88847,3462.1,3460.9,2.8894]
[1721398773785,3.0,3461.7,3460.9,2.8894]
[1721398774108,2.701,3461.7,3460.8,2.8895]
[1721398774314,3.0,3462.1,3461.1,2.88919]
[1721398774474,2.88845,3462.1,3461.1,2.88919]
[1721398774676,8.58934,3462.2,3460.9,0.5313]
[1721398774876,2.701,3461.8,3460.6,2.4235]
[1721398775080,2.701,3461.8,3461.0,2.88927]
[1721398775320,5.88835,3462.2,3461.1,2.88919]
[1721398775609,2.88842,3462.1,3461.1,2.88919]
[1721398775819,2.701,3462.1,3461.1,2.88919]
[1721398775978,2.701,3462.1,3461.2,3.46702]
[1721398776179,2.701,3462.5,3461.4,2.3352]
[1721398776481,2.88802,3462.6,3461.4,5.22417]
[1721398776678,2.701,3462.5,3461.4,5.22417]
[1721398776904,2.701,3462.5,3461.7,2.88869]
[1721398777077,2.701,3462.5,3461.8,0.577747]
[1721398777283,2.701,3462.5,3461.8,3.466407]
[1721398777709,2.701,3462.5,3461.8,0.577747]
[1721398778789,2.88819,3462.4,3461.4,2.3352]
[1721398779015,2.88821,3462.4,3461.4,2.3352]
[1721398779331,2.88842,3462.1,3461.4,2.3352]
[1721398779812,3.0,3462.8,3461.4,2.3352]
[1721398780015,3.0,3462.8,3461.5,2.88888]
[1721398780016,5.58914,3462.5,3461.5,2.88888]
[1721398780229,3.0,3462.7,3461.6,3.411178]
[1721398780385,3.0,3462.8,3461.8,2.8886]
[1721398780584,2.88767,3463.0,3461.6,3.411178]
[1721398780585,2.88767,3463.0,3461.9,0.05776516]
[1721398780784,2.8875,3463.2,3462.1,2.88841]
[1721398781201,2.88759,3463.1,3462.1,2.88841]
[1721398781376,2.88759,3463.1,3462.1,3.466108]
[1721398781595,2.88747,3463.3,3462.3,2.3612]
[1721398781891,2.88747,3463.3,3462.3,5.30713784]
[1721398782100,2.88747,3463.3,3462.3,5.24938]
[1721398782322,5.58847,3463.3,3462.3,5.24938]
[1721398782478,2.88759,3463.1,3462.3,2.3612]
[1721398782902,0.847573,3463.2,3461.9,2.88858]
[1721398782903,2.88781,3462.9,3461.9,2.88858]
[1721398783785,2.88759,3463.1,3461.8,2.3612]
[1721398783998,2.8875,3463.2,3462.3,2.88824]
[1721398784548,2.88767,3463.0,3461.9,2.88857]
[1721398784841,2.88767,3463.0,3461.9,6.562067]
[1721398785000,0.28875,3463.1,3462.1,2.88836]
[1721398785196,2.8875,3463.2,3462.2,2.88827]
[1721398785903,2.701,3463.1,3462.2,2.88827]
[1721398786428,5.58859,3463.1,3462.0,2.88844]
[1721398786595,5.58859,3463.1,3462.1,2.8884]
[1721398786802,2.88742,3463.3,3462.1,0.82800731]
[1721398787211,2.88742,3463.3,3462.3,2.88824]
[1721398787906,2.699,3463.4,3462.6,2.88796]
[1721398788099,3.0,3463.3,3462.4,2.3225]
[1721398788303,2.699,3463.4,3462.4,2.3225]
[1721398788501,2.699,3463.4,3462.5,0.521072]
[1721398788735,2.699,3463.4,3462.5,3.409092]
[1721398788941,2.699,3463.4,3462.7,2.8879]
[1721398789805,2.699,3463.4,3462.6,2.88799]
[1721398790604,2.699,3463.4,3462.4,5.21066]
[1721398790800,3.546345,3463.4,3462.4,5.21066]
[1721398791046,3.546345,3463.4,3462.5,2.88808]
[1721398791416,3.546345,3463.4,3462.6,2.88799]
[1721398791621,3.546345,3463.4,3462.4,5.21066]
[1721398791919,3.546345,3463.4,3462.2,2.8883]
[1721398792124,2.8875,3463.2,3462.3,2.88824]
[1721398792354,2.88759,3463.1,3462.1,3.71636731]
[1721398792759,3.5308295,3463.3,3462.2,2.88832]
[1721398792967,6.2298295,3463.3,3462.3,2.88824]
[1721398793456,2.88751,3463.2,3462.3,2.88824]
[1721398793659,2.88751,3463.2,3462.1,3.71635731]
[1721398793960,2.88751,3463.2,3462.0,2.88847]
[1721398793961,2.88751,3463.2,3462.2,3.62799306]
[1721398794538,5.58651,3463.2,3462.2,3.62799306]
[1721398796445,2.88751,3463.2,3462.2,3.62799306]
[1721398796650,3.3423595,3463.3,3462.3,2.88824]
[1721398797021,2.699,3463.3,3462.6,2.888]
[1721398797323,2.88632,3464.7,3462.4,2.88816]
[1721398797324,5.58576,3464.1,3462.9,2.4107]
[1721398797636,2.699,3464.1,3463.0,0.05774511]
[1721398797943,2.699,3464.1,3463.2,2.88744]
[1721398798382,2.3516,3464.8,3463.6,2.88716]
[1721398798669,2.3516,3464.8,3463.1,0.24684451]
[1721398798670,2.886,3465.0,3463.7,2.9448015]
[1721398798981,2.699,3465.1,3463.9,2.88691]
[1721398799130,2.699,3465.1,3464.3,2.88656]
[1721398799463,2.88574,3465.4,3464.3,2.88656]
[1721398799689,5.58474,3465.4,3464.3,2.88656]
[1721398799846,5.1483,3465.8,3464.7,2.88623]
[1721398800255,2.2629,3465.8,3464.5,2.88638]
[1721398800573,2.88602,3465.0,3464.0,2.76026412]
[1721398800774,0.55399988,3465.7,3463.5,5.3982]
[1721398800775,2.699,3464.7,3463.5,5.3982]
[1721398800987,2.699,3465.1,3464.2,2.88663]
[1721398801136,2.699,3465.1,3464.0,2.88682]
[1721398801478,0.1501131,3466.1,3464.4,2.3982]
[1721398801649,0.1501131,3466.1,3464.8,2.88609]
[1721398801850,2.699,3465.9,3464.8,2.88609]
[1721398802059,2.699,3465.5,3464.5,0.23982]
[1721398802366,2.699,3465.1,3464.4,2.3982]
[1721398803687,0.1501131,3466.1,3464.9,2.6]
[1721398803975,2.699,3466.0,3464.9,2.6]
[1721398804160,2.699,3465.6,3464.9,2.6]
[1721398804490,2.699,3465.6,3463.9,5.2615]
[1721398804491,0.05780988,3465.5,3463.9,5.2615]
[1721398804631,5.5849,3465.2,3464.0,2.88682]
[1721398804836,2.88617,3464.8,3463.9,4.9746]
[1721398805207,2.88625,3464.7,3463.9,2.6]
[1721398805347,3.44448,3465.1,3463.9,2.6]
[1721398805760,2.88616,3464.8,3463.9,2.6]
[1721398805976,2.88652,3464.4,3463.9,2.6]
[1721398806278,2.88652,3464.4,3462.8,5.17363]
[1721398806279,2.88683,3464.0,3462.8,5.17363]
[1721398806572,3.23304188,3464.3,3462.8,2.2858]
[1721398806757,0.288652,3464.3,3462.9,2.88774]
[1721398806957,0.288652,3464.3,3463.2,5.48749]
[1721398807133,3.596,3464.9,3463.4,2.8873]
[1721398807134,2.88617,3464.8,3463.4,2.8873]
[1721398807486,3.0,3464.7,3463.4,2.8873]
[1721398807683,3.0,3464.7,3463.5,0.05773623]
[1721398807684,2.88635,3464.6,3463.5,0.05773623]
[1721398808163,2.88635,3464.6,3463.4,2.8873]
[1721398808164,2.88602,3465.0,3463.8,2.88693]
[1721398808476,2.88617,3464.8,3463.7,2.3236]
[1721398808682,2.88611,3464.9,3463.7,5.21061]
[1721398808683,0.877228,3464.7,3463.7,5.21061]
[1721398809182,2.88643,3464.5,3463.4,2.88731]
[1721398809343,2.88634,3464.6,3463.2,5.48748]
[1721398809673,0.877228,3464.7,3463.2,2.6]
[1721398809875,2.88657,3464.4,3463.2,2.6]
[1721398810170,3.5515838,3464.4,3463.3,3.7366834]
[1721398810677,0.6650138,3464.4,3463.3,3.7367034]
[1721398810831,3.0,3464.8,3463.8,2.88699]
[1721398811028,3.0,3464.8,3463.7,2.88707]
[1721398811233,2.88598,3465.1,3464.0,2.88676]
[1721398811484,2.88578,3465.3,3464.2,2.88659]
[1721398811688,2.88549,3465.7,3464.5,2.8864]
[1721398811888,2.88526,3465.9,3464.8,2.88614]
[1721398812376,3.0352031,3466.1,3464.9,0.05771356]
[1721398812377,0.1501131,3466.1,3464.9,0.05771356]
[1721398812576,0.1501131,3466.1,3465.6,2.88542]
[1721398812799,0.1501131,3466.1,3465.4,2.88566]
[1721398813081,0.1501131,3466.1,3465.5,2.88557]
[1721398813294,0.1501131,3466.1,3465.8,2.88526]
[1721398813499,0.00185148,3468.0,3466.0,2.88511]
[1721398813636,2.88374,3467.8,3466.4,2.88482]
[1721398813833,2.88536148,3468.0,3466.7,2.88457]
[1721398813834,2.88365,3467.9,3466.7,2.88457]
[1721398814102,0.00185148,3468.0,3466.9,2.88441]
[1721398814244,0.00185148,3468.0,3467.1,2.88424]
[1721398815179,0.00185148,3468.0,3467.2,0.05767497]
[1721398815480,0.00185148,3468.0,3467.5,2.88391]
[1721398815789,0.00185148,3468.0,3467.2,2.88409]
[1721398815948,0.00185148,3468.0,3467.5,2.88385]
[1721398816280,0.00185148,3468.0,3467.7,2.8837]
[1721398816758,0.00185148,3468.0,3467.9,2.88358]
[1721398816959,0.00185148,3468.0,3467.9,5.76716]
[1721398817334,0.4995,3469.0,3467.9,2.48295845]
[1721398817557,0.4995,3469.0,3468.0,3.46736562]
[1721398817856,0.4995,3469.0,3468.0,6.56690099]
[1721398818031,0.4995,3469.0,3468.6,2.88298]
[1721398818266,0.4995,3469.0,3468.6,6.25363868]
[1721398818572,0.1501131,3469.5,3468.7,5.4253]
[1721398818774,0.1501131,3469.5,3468.8,35.0]
[1721398819476,3.0323731,3469.5,3468.8,35.0]
[1721398819696,0.1501131,3469.5,3468.8,35.0]